bitfinex-derivatives/quotes_BTCF0:USTF0_20240815
["timestamp","ask_amount","ask_price","bid_price","bid_amount"]
[1723724517351,0.08495,58855.0,58854.0,0.084951]
[1723724517554,0.08499,58855.0,58854.0,0.084951]
[1723724517746,0.009,58857.0,58854.0,0.169902]
[1723724517949,0.009,58857.0,58856.0,0.379549]
[1723724518155,0.00086498,58857.0,58856.0,0.464498]
[1723724518349,0.00086498,58857.0,58856.0,1.534218]
[1723724518851,0.00086498,58857.0,58856.0,0.379549]
[1723724519046,0.00086498,58857.0,58856.0,0.14804521]
[1723724519251,0.3608,58867.0,58856.0,0.14804521]
[1723724519252,0.084939,58863.0,58856.0,0.01265291]
[1723724519452,0.3608,58867.0,58856.0,0.01265291]
[1723724519653,0.084938,58863.0,58856.0,0.01265291]
[1723724519844,0.001,58857.0,58856.0,0.09760191]
[1723724520038,0.003,58857.0,58856.0,0.09760191]
[1723724520441,0.003,58857.0,58856.0,0.01265291]
[1723724520643,0.085947,58857.0,58856.0,0.01265291]
[1723724521052,0.001,58857.0,58856.0,0.09760191]
[1723724521251,0.085947,58857.0,58856.0,0.01265291]
[1723724521446,0.084947,58857.0,58856.0,0.01265291]
[1723724522253,0.087947,58857.0,58856.0,0.01265291]
[1723724522956,0.084957,58850.0,58849.0,0.23884]
[1723724523142,0.169924,58847.0,58840.0,0.3608]
[1723724523349,0.084962,58847.0,58840.0,0.3608]
[1723724523543,0.679724,58847.0,58840.0,0.3608]
[1723724523963,0.084962,58847.0,58840.0,0.3608]
[1723724524257,0.679724,58847.0,58840.0,0.445771]
[1723724524447,0.679764,58847.0,58840.0,0.445771]
[1723724524647,0.084972,58840.0,58836.0,0.0504433]
[1723724524847,0.084975,58838.0,58834.0,0.4962233]
[1723724525154,0.3608,58844.0,58835.0,0.084978]
[1723724526147,0.084977,58836.0,58835.0,0.084978]
[1723724526348,0.001,58838.0,58837.0,0.084976]
[1723724526546,0.001,58838.0,58837.0,0.464552]
[1723724526751,4e-05,58847.0,58846.0,0.084963]
[1723724526951,4e-05,58847.0,58846.0,0.445763]
[1723724528048,4e-05,58847.0,58846.0,0.445803]
[1723724528244,4e-05,58847.0,58846.0,0.36084]
[1723724528458,1.079764,58847.0,58846.0,4e-05]
[1723724528764,1.165726,58847.0,58846.0,0.00204]
[1723724529343,0.084972,58840.0,58839.0,0.3608]
[1723724530255,0.3608,58844.0,58834.0,0.00025502]
[1723724530256,0.084977,58836.0,58834.0,0.00025502]
[1723724530459,0.084979,58835.0,58834.0,0.00025502]
[1723724531454,0.085019,58835.0,58834.0,0.00025502]
[1723724531651,0.085019,58835.0,58834.0,0.08523502]
[1723724531856,0.086019,58835.0,58834.0,0.08723502]
[1723724532559,4e-05,58835.0,58834.0,0.08523502]
[1723724532765,4e-05,58835.0,58834.0,0.08723502]
[1723724532953,4e-05,58835.0,58834.0,0.09223502]
[1723724533261,0.085019,58835.0,58834.0,0.09223502]
[1723724533464,0.086019,58835.0,58834.0,0.09323502]
[1723724534860,0.087019,58835.0,58834.0,0.09323502]
[1723724535354,0.086019,58835.0,58834.0,0.09223502]
[1723724535558,0.00104,58835.0,58834.0,0.09223502]
[1723724536060,0.087019,58835.0,58834.0,0.00925502]
[1723724536248,0.087019,58835.0,58834.0,0.007]
[1723724536249,0.171998,58835.0,58834.0,0.007]
[1723724536454,0.171998,58835.0,58815.0,0.10124295]
[1723724536455,0.254976,58826.0,58815.0,0.10124295]
[1723724536654,0.085014,58811.0,58803.0,0.04147055]
[1723724536853,0.445814,58811.0,58802.0,0.085026]
[1723724537254,0.445814,58811.0,58795.0,0.13462111]
[1723724537449,0.530828,58811.0,58800.0,0.085028]
[1723724537649,0.530828,58811.0,58805.0,0.00025502]
[1723724537861,1.893502,58811.0,58805.0,0.00025502]
[1723724538163,0.530868,58811.0,58805.0,0.00025502]
[1723724538866,1.040988,58811.0,58805.0,0.00025502]
[1723724539161,1.041988,58811.0,58805.0,0.00025502]
[1723724539351,1.127002,58811.0,58805.0,0.00025502]
[1723724539752,1.128002,58811.0,58805.0,0.00025502]
[1723724540259,1.042988,58811.0,58805.0,0.00025502]
[1723724540466,0.532868,58811.0,58805.0,0.00025502]
[1723724543054,0.617882,58811.0,58805.0,0.00025502]
[1723724543661,1.895502,58811.0,58805.0,0.00025502]
[1723724543862,2.015502,58811.0,58805.0,0.00025502]
[1723724544767,2.100516,58811.0,58805.0,0.00025502]
[1723724544960,2.35509687,58811.0,58810.0,9.4e-07]
[1723724545468,2.36387969,58811.0,58810.0,9.4e-07]
[1723724545860,2.36404611,58811.0,58810.0,9.4e-07]
[1723724546364,2.36604611,58811.0,58810.0,9.4e-07]
[1723724546674,2.36804611,58811.0,58810.0,9.4e-07]
[1723724547168,2.00724611,58811.0,58810.0,9.4e-07]
[1723724547360,2.72884611,58811.0,58810.0,9.4e-07]
[1723724550269,2.64383211,58811.0,58810.0,9.4e-07]
[1723724550472,2.72884611,58811.0,58810.0,9.4e-07]
[1723724551365,2.88884611,58811.0,58810.0,9.4e-07]
[1723724551768,1.98925124,58811.0,58810.0,9.4e-07]
[1723724552370,1.47913124,58811.0,58810.0,9.4e-07]
[1723724552772,1.98925124,58811.0,58810.0,9.4e-07]
[1723724554569,2.47426524,58811.0,58810.0,9.4e-07]
[1723724554880,2.63426524,58811.0,58810.0,9.4e-07]
[1723724555463,0.340084,58806.0,58805.0,9.6e-07]
[1723724555669,1.345905,58806.0,58805.0,9.6e-07]
[1723724555984,1.345905,58806.0,58792.0,0.1261]
[1723724555985,0.25512,58793.0,58792.0,0.1261]
[1723724556175,0.96592,58793.0,58792.0,0.1261]
[1723724556566,0.96608736,58793.0,58792.0,0.1261]
[1723724557169,0.53108736,58793.0,58792.0,0.1261]
[1723724558787,0.67108736,58793.0,58792.0,0.1261]
[1723724558985,0.75712736,58793.0,58792.0,0.1261]
[1723724559278,0.53308736,58793.0,58792.0,0.1261]
[1723724560872,0.44804736,58793.0,58792.0,0.1261]
[1723724561368,0.53308736,58793.0,58792.0,0.1261]
[1723724562476,0.53308736,58793.0,58792.0,0.1271]
[1723724563075,0.66308736,58793.0,58792.0,0.1271]
[1723724563277,0.74812736,58793.0,58792.0,0.1271]
[1723724563970,0.66308736,58793.0,58792.0,0.1271]
[1723724564174,0.74812736,58793.0,58792.0,0.1271]
[1723724565975,0.74812736,58793.0,58792.0,0.001]
[1723724567077,1.34276027,58793.0,58792.0,0.001]
[1723724567380,1.68724656,58793.0,58792.0,0.001]
[1723724567678,0.255135,58789.0,58788.0,0.1274]
[1723724567879,0.799135,58789.0,58788.0,0.1274]
[1723724568071,1.7945,58789.0,58788.0,0.1274]
[1723724568471,1.8229721,58789.0,58788.0,0.1274]
[1723724568975,1.8230121,58789.0,58788.0,0.1274]
[1723724569178,1.8290121,58789.0,58788.0,0.1274]
[1723724569883,1.8350121,58789.0,58788.0,0.1274]
[1723724570371,0.812175,58789.0,58788.0,0.1274]
[1723724570572,1.20726534,58789.0,58788.0,0.1274]
[1723724570776,1.122495,58789.0,58788.0,0.1274]
[1723724571176,0.614175,58789.0,58788.0,0.1274]
[1723724572081,0.6989387,58789.0,58788.0,0.1274]
[1723724572283,0.69194131,58789.0,58788.0,0.1274]
[1723724572484,0.613175,58789.0,58788.0,0.1274]
[1723724572685,1.2369999,58789.0,58788.0,0.1274]
[1723724572979,1.63097204,58789.0,58788.0,0.1274]
[1723724573173,1.63797204,58789.0,58788.0,0.1274]
[1723724573369,1.23797204,58789.0,58788.0,0.1274]
[1723724573675,0.69922,58789.0,58788.0,0.1274]
[1723724573878,0.78399114,58789.0,58788.0,0.1274]
[1723724575087,0.64894614,58789.0,58788.0,0.1274]
[1723724575289,0.564175,58789.0,58788.0,0.1274]
[1723724576788,0.47913,58789.0,58788.0,0.1274]
[1723724576980,0.085047,58788.0,58787.0,0.00025502]
[1723724577195,0.255159,58784.0,58783.0,0.0612]
[1723724577485,0.255183,58778.0,58777.0,0.0571]
[1723724577789,1.259983,58778.0,58777.0,0.0571]
[1723724577988,1.32780992,58778.0,58777.0,0.0571]
[1723724578390,1.259983,58778.0,58777.0,0.0571]
[1723724578691,1.260023,58778.0,58777.0,0.0571]
[1723724580091,1.262023,58778.0,58777.0,0.0581]
[1723724580294,1.32984992,58778.0,58777.0,0.0581]
[1723724580681,1.32884992,58778.0,58777.0,0.0571]
[1723724580987,1.261023,58778.0,58777.0,0.0571]
[1723724581299,0.255201,58774.0,58773.0,0.1186]
[1723724581481,0.866001,58774.0,58773.0,0.1186]
[1723724581683,0.866001,58774.0,58773.0,0.0594]
[1723724581884,0.255207,58773.0,58772.0,0.00025502]
[1723724582083,0.655207,58773.0,58772.0,0.00025502]
[1723724583290,0.655247,58773.0,58772.0,0.00025502]
[1723724583795,1.251756,58773.0,58772.0,0.00025502]
[1723724584194,1.250756,58773.0,58772.0,0.00025502]
[1723724584497,0.740316,58773.0,58772.0,0.00025502]
[1723724584689,0.741316,58773.0,58772.0,0.00025502]
[1723724585084,1.09028286,58773.0,58772.0,0.00025502]
[1723724585281,0.255246,58764.0,58763.0,0.0592]
[1723724585488,1.15953087,58764.0,58762.0,0.0581]
[1723724585692,0.255249,58763.0,58762.0,0.0581]
[1723724585995,0.625249,58763.0,58762.0,0.0581]
[1723724586193,0.255252,58762.0,58761.0,0.00013813]
[1723724586396,0.625252,58762.0,58761.0,0.00013813]
[1723724586689,1.7901966,58762.0,58761.0,0.00013813]
[1723724587094,0.085103,58749.0,58748.0,0.0615]
[1723724587297,1.440909,58749.0,58748.0,0.0615]
[1723724588299,1.27113152,58749.0,58748.0,0.0615]
[1723724588602,1.39113152,58749.0,58748.0,0.0615]
[1723724588896,1.27113152,58749.0,58748.0,0.0615]
[1723724589084,1.18602852,58749.0,58748.0,0.0615]
[1723724589891,0.80792552,58749.0,58748.0,0.0615]
[1723724590583,0.80892552,58749.0,58748.0,0.0615]
[1723724590790,0.80892552,58749.0,58748.0,0.146605]
[1723724591383,0.72382252,58749.0,58748.0,0.146605]
[1723724591591,0.63152252,58749.0,58748.0,0.146605]
[1723724591897,0.00025524,58754.0,58753.0,0.085097]
[1723724592085,0.08509,58759.0,58757.0,0.085091]
[1723724592289,0.08509,58759.0,58753.0,0.3608]
[1723724592492,0.085092,58757.0,58756.0,0.085092]
[1723724592997,0.08521497,58757.0,58756.0,0.085092]
[1723724593200,0.00012297,58757.0,58756.0,0.085092]
[1723724593999,0.08521497,58757.0,58756.0,0.085092]
[1723724594601,0.08621497,58757.0,58756.0,0.085092]
[1723724594998,0.08621497,58757.0,58756.0,0.086092]
[1723724595802,0.08621497,58757.0,58756.0,0.085092]
[1723724596002,0.08721497,58757.0,58756.0,0.087092]
[1723724596397,0.08721497,58757.0,58756.0,0.089092]
[1723724598096,0.08621497,58757.0,58756.0,0.087092]
[1723724598399,0.08721497,58757.0,58756.0,0.003]
[1723724599294,0.08721497,58757.0,58756.0,0.001]
[1723724599496,0.08721497,58757.0,58756.0,0.002]
[1723724600002,0.08621497,58757.0,58756.0,0.002]
[1723724600203,0.08721497,58757.0,58756.0,0.002]
[1723724600398,0.17230697,58757.0,58756.0,0.002]
[1723724600599,0.17230697,58757.0,58756.0,0.001]
[1723724600600,0.17130697,58757.0,58756.0,0.001]
[1723724600908,0.17130697,58757.0,58756.0,0.002]
[1723724601703,0.17030697,58757.0,58756.0,0.002]
[1723724606308,0.72619897,58757.0,58756.0,0.002]
[1723724607205,0.72619897,58757.0,58745.0,0.0612]
[1723724607206,0.170204,58750.0,58745.0,0.0612]
[1723724607510,0.255306,58750.0,58745.0,0.0612]
[1723724608109,0.170206,58749.0,58745.0,0.0612]
[1723724609400,0.170246,58749.0,58745.0,0.0612]
[1723724609608,0.171246,58749.0,58745.0,0.0612]
[1723724610004,0.086143,58749.0,58745.0,0.0612]
[1723724610805,0.087143,58749.0,58745.0,0.0612]
[1723724611212,0.087143,58749.0,58748.0,0.507405]
[1723724612316,0.172246,58749.0,58748.0,0.507405]
[1723724612517,0.087143,58749.0,58748.0,0.507405]
[1723724613021,0.257349,58749.0,58748.0,0.3608]
[1723724613317,0.172246,58749.0,58748.0,0.3608]
[1723724615524,0.2231097,58749.0,58748.0,0.3608]
[1723724616109,0.170222,58744.0,58743.0,0.06757103]
[1723724616414,0.531022,58744.0,58743.0,0.00017053]
[1723724617413,0.5819257,58744.0,58743.0,0.00017053]
[1723724617612,0.531062,58744.0,58743.0,0.00017053]
[1723724617815,0.746173,58744.0,58743.0,0.00017053]
[1723724618006,0.746173,58744.0,58736.0,0.0674005]
[1723724618007,0.085118,58739.0,58736.0,0.0674005]
[1723724618207,0.170244,58736.0,58735.0,0.0674005]
[1723724618507,0.170244,58736.0,58733.0,0.3608]
[1723724618508,0.17025,58734.0,58733.0,0.3608]
[1723724619428,0.170258,58731.0,58730.0,0.0594]
[1723724620020,0.085129,58731.0,58730.0,0.0594]
[1723724620710,0.085169,58731.0,58730.0,0.0594]
[1723724620906,4e-05,58731.0,58730.0,1.055331]
[1723724621215,0.001,58734.0,58733.0,0.170252]
[1723724621409,0.001,58734.0,58733.0,0.531052]
[1723724621717,0.001,58734.0,58733.0,1.441852]
[1723724621903,0.001,58734.0,58733.0,1.499852]
[1723724622104,0.00137821,58736.0,58735.0,0.085124]
[1723724622308,0.0509424,58742.0,58737.0,0.085121]
[1723724622522,0.0509424,58746.0,58745.0,0.085109]
[1723724622812,0.085107,58747.0,58746.0,0.085108]
[1723724623405,0.0509424,58750.0,58749.0,0.085103]
[1723724623714,0.00025524,58752.0,58751.0,0.1702]
[1723724623917,0.0509424,58760.0,58752.0,0.085099]
[1723724624110,0.3608,58762.0,58761.0,0.085086]
[1723724624415,0.3608,58762.0,58735.0,0.08425063]
[1723724624416,0.085102,58750.0,58735.0,0.08425063]
[1723724624715,0.2942,58743.0,58736.0,0.06776471]
[1723724625023,0.08512,58738.0,58737.0,0.08512]
[1723724626618,0.085114,58742.0,58741.0,0.085115]
[1723724627918,0.085114,58742.0,58741.0,0.085155]
[1723724628826,0.086114,58742.0,58741.0,0.085155]
[1723724629125,0.087114,58742.0,58741.0,0.15391971]
[1723724630024,0.087114,58742.0,58741.0,0.51471971]
[1723724630724,0.172229,58742.0,58741.0,0.06880471]
[1723724630926,0.172229,58742.0,58741.0,0.00104]
[1723724632326,0.087114,58742.0,58741.0,0.086155]
[1723724632827,0.087114,58742.0,58741.0,0.446955]
[1723724634014,0.087114,58742.0,58741.0,0.086155]
[1723724635125,0.172226,58742.0,58741.0,0.00104]
[1723724635520,0.087113,58742.0,58741.0,0.00104]
[1723724637124,0.172226,58742.0,58741.0,0.00104]
[1723724637327,0.087113,58742.0,58741.0,0.086155]
[1723724637526,0.087113,58742.0,58741.0,0.15397533]
[1723724637927,0.172226,58742.0,58741.0,0.15397533]
[1723724638124,0.172226,58742.0,58741.0,0.086155]
[1723724638629,0.172226,58742.0,58741.0,0.15399452]
[1723724639832,0.087113,58742.0,58741.0,0.086155]
[1723724640020,0.087113,58742.0,58741.0,0.00104]
[1723724641728,0.172226,58742.0,58741.0,0.00104]
[1723724642128,0.22318715,58742.0,58741.0,0.00104]
[1723724642522,0.41830015,58742.0,58741.0,0.00104]
[1723724642729,1.238859,58742.0,58741.0,0.00104]
[1723724643536,1.24748405,58742.0,58741.0,0.00104]
[1723724643924,1.24648405,58742.0,58741.0,4e-05]
[1723724644134,1.24648405,58742.0,58741.0,0.00104]
[1723724644728,1.24548405,58742.0,58741.0,0.00104]
[1723724644929,0.53965105,58742.0,58741.0,0.00104]
[1723724645132,0.62476405,58742.0,58741.0,0.00104]
[1723724645335,0.75476405,58742.0,58741.0,0.00104]
[1723724647427,1.26548405,58742.0,58741.0,0.00104]
[1723724648138,0.53965105,58742.0,58741.0,0.00104]
[1723724649033,0.45453805,58742.0,58741.0,0.00104]
[1723724649237,0.06793569,58744.0,58741.0,0.00104]
[1723724649431,0.00025524,58745.0,58741.0,0.00104]
[1723724649432,0.05094859,58743.0,58742.0,0.143713]
[1723724649628,0.13605959,58744.0,58743.0,0.085112]
[1723724649826,0.085111,58744.0,58743.0,0.085112]
[1723724650329,0.085113,58742.0,58741.0,0.086154]
[1723724650642,0.170226,58742.0,58741.0,4e-05]
[1723724650844,0.661026,58742.0,58741.0,4e-05]
[1723724651134,0.661026,58742.0,58734.0,0.00025524]
[1723724651135,0.085124,58735.0,58734.0,0.00025524]
[1723724651326,0.22120892,58735.0,58734.0,0.00025524]
[1723724651529,0.170248,58735.0,58734.0,0.00025524]
[1723724652634,0.171288,58735.0,58734.0,0.00025524]
[1723724652934,0.13712017,58735.0,58734.0,0.00025524]
[1723724653432,0.22224417,58735.0,58734.0,0.00025524]
[1723724653632,0.171288,58735.0,58734.0,0.00025524]
[1723724653833,0.172288,58735.0,58734.0,0.00125524]
[1723724655628,0.170264,58729.0,58728.0,0.06786604]
[1723724655838,0.2942,58727.0,58724.0,0.12646604]
[1723724656033,0.2942,58727.0,58724.0,0.0586]
[1723724656441,0.13608199,58725.0,58724.0,0.0586]
[1723724656640,0.170276,58725.0,58724.0,0.10956919]
[1723724656933,0.170276,58725.0,58724.0,0.0596]
[1723724657129,0.170316,58725.0,58724.0,0.0596]
[1723724657730,0.171316,58725.0,58724.0,0.0596]
[1723724659246,0.172316,58725.0,58724.0,0.0596]
[1723724662339,0.182316,58725.0,58724.0,0.0596]
[1723724662539,0.172316,58725.0,58724.0,0.0596]
[1723724664138,0.257454,58725.0,58724.0,0.0596]
[1723724667145,0.256454,58725.0,58724.0,0.0586]
[1723724667451,0.255426,58722.0,58721.0,0.05096919]
[1723724667655,1.04578801,58722.0,58714.0,0.0010527]
[1723724667952,0.255459,58715.0,58714.0,0.0001327]
[1723724668150,0.53621133,58715.0,58714.0,0.0001327]
[1723724668336,0.08517,58703.0,58702.0,0.14517]
[1723724668539,0.085163,58708.0,58704.0,0.085168]
[1723724668540,0.379363,58708.0,58704.0,0.085168]
[1723724668853,0.085168,58705.0,58704.0,0.085168]
[1723724669241,0.0853007,58705.0,58704.0,0.085168]
[1723724671555,0.0863007,58705.0,58704.0,0.085168]
[1723724671851,0.0873007,58705.0,58704.0,0.085168]
[1723724674249,0.00025546,58712.0,58711.0,0.085158]
[1723724674437,0.08541246,58712.0,58711.0,0.085158]
[1723724674948,0.08516,58710.0,58709.0,0.3608]
[1723724676153,0.08516,58710.0,58709.0,0.445961]
[1723724676946,0.00125546,58712.0,58711.0,0.085158]
[1723724677348,0.00025546,58712.0,58711.0,0.596118]
[1723724678253,0.00025546,58712.0,58711.0,0.596158]
[1723724678450,0.08641246,58712.0,58711.0,0.00204]
[1723724678641,0.17256946,58712.0,58711.0,0.00404]
[1723724678849,0.08741246,58712.0,58711.0,0.00404]
[1723724679150,0.17256946,58712.0,58711.0,0.00404]
[1723724679346,0.08741246,58712.0,58711.0,0.00404]
[1723724679658,0.17256946,58712.0,58711.0,0.00404]
[1723724679845,0.08741246,58712.0,58711.0,0.00404]
[1723724680250,0.08741246,58712.0,58711.0,0.00304]
[1723724680455,0.09741246,58712.0,58711.0,0.00304]
[1723724680851,0.08741246,58712.0,58711.0,0.00304]
[1723724681058,0.08641246,58712.0,58711.0,0.00204]
[1723724681250,0.08741246,58712.0,58711.0,0.00304]
[1723724681446,0.08641246,58712.0,58711.0,0.00104]
[1723724681655,0.08741246,58712.0,58711.0,0.00204]
[1723724685156,0.08741246,58712.0,58711.0,0.087198]
[1723724685554,0.08741246,58712.0,58711.0,0.15506404]
[1723724686159,0.08741246,58712.0,58711.0,0.087198]
[1723724686358,0.17256946,58712.0,58711.0,0.00204]
[1723724686562,0.08741246,58712.0,58711.0,0.00204]
[1723724687857,0.08741246,58712.0,58711.0,0.087198]
[1723724688067,0.08741246,58712.0,58711.0,0.15506404]
[1723724688254,0.08741246,58712.0,58711.0,0.087198]
[1723724689952,0.17256946,58712.0,58711.0,0.00204]
[1723724690156,0.08741246,58712.0,58711.0,0.00204]
[1723724690767,0.17256946,58712.0,58711.0,0.00204]
[1723724691364,0.17256946,58712.0,58711.0,0.07001884]
[1723724691565,0.19256946,58712.0,58711.0,0.07001884]
[1723724691750,0.17256946,58712.0,58711.0,0.00204]
[1723724692359,0.18256946,58712.0,58711.0,0.00204]
[1723724692563,0.23338117,58712.0,58711.0,0.00204]
[1723724692762,0.18256946,58712.0,58711.0,0.00204]
[1723724692957,0.23338137,58712.0,58711.0,0.00204]
[1723724693558,0.14822437,58712.0,58711.0,0.00204]
[1723724693758,0.09741246,58712.0,58711.0,0.00204]
[1723724694161,0.18256946,58712.0,58711.0,0.00204]
[1723724694355,0.23338137,58712.0,58711.0,0.00204]
[1723724695561,0.14822437,58712.0,58711.0,0.00204]
[1723724696260,0.18256946,58712.0,58711.0,0.00204]
[1723724697273,0.08741246,58712.0,58711.0,0.07001884]
[1723724697469,0.17256946,58712.0,58711.0,0.07001884]
[1723724698358,0.08741246,58712.0,58711.0,0.07001884]
[1723724698768,0.17256946,58712.0,58711.0,0.07001884]
[1723724699168,0.17256946,58712.0,58711.0,0.00204]
[1723724699467,0.08741246,58712.0,58711.0,0.00204]
[1723724700274,0.00225546,58712.0,58711.0,0.087198]
[1723724700868,0.00225546,58712.0,58711.0,0.74852308]
[1723724701065,0.05087538,58717.0,58711.0,1.07930784]
[1723724701278,0.1188548,58722.0,58716.0,0.655]
[1723724701459,0.3608,58728.0,58716.0,0.655]
[1723724701460,0.05088622,58724.0,58723.0,0.255423]
[1723724701659,0.44561378,58733.0,58727.0,0.085135]
[1723724701660,0.05088713,58730.0,58727.0,0.085135]
[1723724701864,0.05088713,58731.0,58730.0,0.085131]
[1723724702070,0.05088713,58733.0,58732.0,0.085128]
[1723724702273,0.085124,58735.0,58734.0,0.085125]
[1723724702858,0.00025546,58736.0,58735.0,0.085123]
[1723724703064,0.00025546,58736.0,58735.0,0.15309225]
[1723724703258,0.00025546,58736.0,58735.0,0.085123]
[1723724703670,0.00025546,58736.0,58735.0,0.15309225]
[1723724704166,0.00025546,58736.0,58735.0,0.085163]
[1723724704861,0.00025546,58736.0,58735.0,0.093163]
[1723724705061,0.00125546,58736.0,58735.0,0.093163]
[1723724705268,0.00225546,58736.0,58735.0,0.102163]
[1723724705667,0.00225546,58736.0,58735.0,0.094163]
[1723724705873,0.00125546,58736.0,58735.0,0.093163]
[1723724706069,0.3608,58739.0,58738.0,0.085119]
[1723724706260,0.3608,58747.0,58746.0,0.085107]
[1723724706662,0.08512,58737.0,58736.0,0.3608]
[1723724706965,0.08512,58737.0,58736.0,0.445922]
[1723724708471,0.08512,58737.0,58736.0,0.453922]
[1723724708671,0.08612,58737.0,58736.0,0.453922]
[1723724709870,0.08712,58737.0,58736.0,0.462922]
[1723724710465,0.08612,58737.0,58736.0,0.462922]
[1723724710663,0.08712,58737.0,58736.0,0.462922]
[1723724711266,0.002,58737.0,58736.0,0.462922]
[1723724711774,0.00025546,58742.0,58741.0,0.17023]
[1723724712069,0.085097,58754.0,58741.0,0.9108]
[1723724712265,0.085098,58753.0,58747.0,0.3608]
[1723724712462,0.085098,58753.0,58752.0,0.445899]
[1723724712665,0.085093,58757.0,58754.0,0.085095]
[1723724712865,0.085086,58761.0,58752.0,0.3608]
[1723724713072,0.085097,58754.0,58752.0,0.3608]
[1723724713275,0.085097,58754.0,58753.0,0.085097]
[1723724714076,0.085097,58753.0,58752.0,0.3608]
[1723724714275,0.085097,58753.0,58752.0,0.445899]
[1723724715266,0.085097,58753.0,58749.0,0.00911507]
[1723724715466,0.085102,58750.0,58749.0,0.00025546]
[1723724716777,0.091102,58750.0,58749.0,0.00125546]
[1723724717269,0.091102,58750.0,58749.0,0.08635846]
[1723724717674,0.098102,58750.0,58749.0,0.08735846]
[1723724719569,0.098102,58750.0,58749.0,0.44815846]
[1723724720370,0.098102,58750.0,58749.0,0.45716467]
[1723724720571,0.013,58750.0,58749.0,0.45716467]
[1723724720974,0.013,58750.0,58749.0,0.96780467]
[1723724721369,0.013,58750.0,58749.0,1.67801067]
[1723724721574,0.00025546,58760.0,58759.0,0.085089]
[1723724722275,0.00025546,58760.0,58759.0,0.595649]
[1723724722485,0.00025546,58760.0,58759.0,0.085089]
[1723724723284,0.01225546,58760.0,58759.0,0.086089]
[1723724723983,0.02325546,58760.0,58759.0,0.087089]
[1723724725066,0.19342946,58760.0,58759.0,0.002]
[1723724725271,0.170204,58750.0,58749.0,0.00025546]
[1723724725571,0.085102,58750.0,58749.0,0.44615846]
[1723724725778,0.085098,58753.0,58752.0,0.085095]
[1723724726067,0.085102,58750.0,58749.0,0.08535746]
[1723724726483,0.085102,58750.0,58749.0,0.44615746]
[1723724726671,0.08509,58759.0,58754.0,0.085095]
[1723724726871,0.085096,58755.0,58754.0,0.445895]
[1723724728180,0.091096,58755.0,58754.0,0.446895]
[1723724728370,0.097096,58755.0,58754.0,0.447895]
[1723724728570,0.182192,58755.0,58754.0,0.3628]
[1723724728877,0.097096,58755.0,58754.0,0.3628]
[1723724729677,0.012,58755.0,58754.0,0.447896]
[1723724730668,0.012,58755.0,58754.0,0.532992]
[1723724731399,0.012,58755.0,58754.0,0.54205504]
[1723724731772,0.012,58755.0,58754.0,0.45695904]
[1723724734481,0.097094,58755.0,58754.0,0.45695904]
[1723724737679,0.012,58755.0,58754.0,0.45695904]
[1723724737876,0.01,58755.0,58754.0,1.60265504]
[1723724738184,0.00025546,58760.0,58759.0,0.255267]
[1723724738376,0.00025546,58760.0,58759.0,0.70094159]
[1723724738576,0.00025546,58760.0,58759.0,1.67589869]
[1723724738785,0.00025546,58760.0,58759.0,1.71323093]
[1723724738979,0.00025546,58760.0,58759.0,1.33369932]
[1723724739180,0.00025546,58760.0,58759.0,1.648827]
[1723724739381,0.00025546,58760.0,58759.0,0.738267]
[1723724739979,0.00725546,58760.0,58759.0,0.739267]
[1723724740385,0.01425546,58760.0,58759.0,0.740267]
[1723724740777,0.01425546,58760.0,58759.0,0.82513932]
[1723724741287,0.01425546,58760.0,58759.0,0.88935775]
[1723724741587,0.01425546,58760.0,58759.0,0.59697975]
[1723724741884,0.09934246,58760.0,58759.0,0.447889]
[1723724745597,0.18442946,58760.0,58759.0,0.447889]
[1723724746486,0.18442946,58760.0,58759.0,0.3628]
[1723724747088,0.18442946,58760.0,58759.0,0.447889]
[1723724747295,0.09934246,58760.0,58759.0,0.447889]
[1723724747590,0.01425546,58760.0,58759.0,0.447889]
[1723724747791,0.09934246,58760.0,58759.0,0.447889]
[1723724748383,0.09934246,58760.0,58759.0,0.53276132]
[1723724748585,0.09934246,58760.0,58759.0,0.59717217]
[1723724748791,0.09934246,58760.0,58759.0,0.53276132]
[1723724751299,0.01425546,58760.0,58759.0,0.59710407]
[1723724752181,0.09934246,58760.0,58759.0,0.59710407]
[1723724752387,0.09934246,58760.0,58759.0,0.53276132]
[1723724756191,0.09934246,58760.0,58759.0,0.5970995]
[1723724756591,0.09934246,58760.0,58759.0,0.53276132]
[1723724757209,0.09934246,58760.0,58759.0,0.59710419]
[1723724760500,0.18442946,58760.0,58759.0,0.59710419]
[1723724760906,0.18442946,58760.0,58759.0,0.53276132]
[1723724761110,0.18442946,58760.0,58759.0,0.447889]
[1723724761703,0.26951646,58760.0,58759.0,0.3628]
[1723724763110,0.09934246,58760.0,58759.0,0.447889]
[1723724763308,0.09934246,58760.0,58759.0,0.59734387]
[1723724763609,0.09934246,58760.0,58759.0,0.51261016]
[1723724764704,0.09934246,58760.0,58759.0,0.51228563]
[1723724767417,0.09934246,58760.0,58759.0,0.66054177]
[1723724767614,0.18442946,58760.0,58759.0,0.51228563]
[1723724767811,0.23531659,58760.0,58759.0,0.59734787]
[1723724768112,0.23531659,58760.0,58759.0,0.59734785]
[1723724768314,0.18442946,58760.0,58759.0,0.59734785]
[1723724768507,0.23537362,58760.0,58759.0,0.53295122]
[1723724769216,0.23537362,58760.0,58759.0,0.51285262]
[1723724769517,0.23537362,58760.0,58759.0,0.59791042]
[1723724769712,0.18442946,58760.0,58759.0,0.5329468]
[1723724769919,0.2353691,58760.0,58759.0,0.5329468]
[1723724770213,0.24463091,58760.0,58759.0,0.59796204]
[1723724770418,0.24463091,58760.0,58759.0,0.5329468]
[1723724771116,0.24463091,58760.0,58759.0,0.447889]
[1723724771314,0.24463091,58760.0,58759.0,0.06804832]
[1723724771315,1.52845127,58760.0,58759.0,0.06804832]
[1723724771616,0.085102,58750.0,58749.0,0.00025546]
[1723724771816,0.395306,58750.0,58749.0,0.00025546]
[1723724772407,0.32311022,58750.0,58749.0,0.00025546]
[1723724772610,0.85375022,58750.0,58749.0,0.00025546]
[1723724773620,0.785946,58750.0,58749.0,0.00025546]
[1723724775021,0.79512408,58750.0,58749.0,0.00025546]